bitfinex/quotes_SOLUSD_20250625
["timestamp","ask_amount","ask_price","bid_price","bid_amount"]
[1750861643611,17.78124464,145.75,145.7,17.67758605]
[1750861643612,47.73417552,145.75,145.7,17.67758605]
[1750861643814,21.73417552,145.75,145.7,17.67758605]
[1750861644108,10.81417552,145.73,145.69,10.81417552]
[1750861644310,26.0,145.74,145.7,10.81417552]
[1750861644511,26.0,145.74,145.67,6.86483146]
[1750861644711,26.0,145.74,145.71,10.81417552]
[1750861645107,36.81417552,145.74,145.7,17.67737322]
[1750861645492,26.0,145.74,145.7,17.67737322]
[1750861645693,10.81417552,145.72,145.68,6.86436024]
[1750861646018,10.81417552,145.71,145.67,17.67882941]
[1750861646212,10.81417552,145.72,145.68,10.81417552]
[1750861646411,26.0,145.73,145.69,10.81417552]
[1750861646811,26.0,145.73,145.7,10.81417552]
[1750861647014,36.81417552,145.75,145.71,10.81417552]
[1750861647207,36.81417552,145.75,145.71,17.67667744]
[1750861647906,43.67533651,145.75,145.7,17.67728973]
[1750861648217,10.81417552,145.72,145.69,6.86372202]
[1750861648401,10.81417552,145.71,145.68,6.86419306]
[1750861648598,10.81417552,145.71,145.66,35.64440677]
[1750861648599,10.81417552,145.69,145.66,1.5919]
[1750861648801,26.0,145.71,145.66,8.45718341]
[1750861648802,10.81417552,145.7,145.66,8.45718341]
[1750861649213,10.81417552,145.68,145.66,1.5919]
[1750861649421,10.81417552,145.67,145.62,1.6064]
[1750861649634,10.81417552,145.67,145.62,8.4735027]
[1750861649834,10.81417552,145.65,145.62,1.6064]
[1750861650235,10.81417552,145.66,145.62,8.47353061]
[1750861650533,10.81417552,145.67,145.62,19.28770613]
[1750861650920,18.64964886,145.69,145.64,10.81417552]
[1750861651113,10.81417552,145.68,145.63,10.81417552]
[1750861651836,25.51386525,145.69,145.62,8.47353061]
[1750861652315,25.51386525,145.69,145.63,10.81417552]
[1750861652316,10.81417552,145.67,145.63,10.81417552]
[1750861652509,10.81417552,145.66,145.62,1.6064]
[1750861652832,10.81417552,145.64,145.6,17.68212046]
[1750861653031,10.81417552,145.63,145.59,6.3997]
[1750861653334,10.81417552,145.62,145.58,1.6111]
[1750861653708,10.81417552,145.62,145.58,8.48009574]
[1750861653913,10.81417552,145.62,145.58,1.6111]
[1750861654131,10.81417552,145.62,145.58,12.42527552]
[1750861654648,10.81417552,145.62,145.58,1.6111]
[1750861655129,17.68204151,145.61,145.56,17.68401593]
[1750861655331,10.81417552,145.61,145.56,17.68401593]
[1750861655634,10.81417552,145.61,145.55,13.15572539]
[1750861655635,10.81417552,145.6,145.55,13.15572539]
[1750861655823,10.81417552,145.59,145.54,19.34915132]
[1750861656019,10.81417552,145.58,145.54,19.34915132]
[1750861656334,10.81417552,145.55,145.49,7.5444]
[1750861656518,18.64964886,145.57,145.5,40.81417552]
[1750861656519,10.81417552,145.54,145.5,40.81417552]
[1750861656712,10.81417552,145.55,145.5,40.81417552]
[1750861656908,10.81417552,145.55,145.51,10.81417552]
[1750861657138,10.81417552,145.59,145.55,6.87049124]
[1750861657317,36.81417552,145.6,145.55,17.68466676]
[1750861657515,10.81417552,145.59,145.55,17.68466676]
[1750861657832,10.81417552,145.59,145.54,17.68498448]
[1750861658031,10.81417552,145.59,145.55,10.81417552]
[1750861658340,36.81417552,145.6,145.55,10.81417552]
[1750861658633,10.81417552,145.59,145.55,10.81417552]
[1750861658827,36.81417552,145.6,145.55,6.87036586]
[1750861659138,36.81417552,145.6,145.51,17.18026386]
[1750861659139,10.81417552,145.59,145.54,10.81417552]
[1750861659939,10.81417552,145.58,145.54,10.81417552]
[1750861660144,10.81417552,145.59,145.54,17.68488905]
[1750861660641,26.0,145.6,145.57,10.81417552]
[1750861660937,10.81417552,145.59,145.55,10.81417552]
[1750861661135,10.81417552,145.59,145.54,17.68488905]
[1750861661441,10.81417552,145.59,145.55,10.81417552]
[1750861661641,36.81417552,145.6,145.56,10.81417552]
[1750861661828,26.0,145.6,145.57,10.81417552]
[1750861662137,26.0,145.6,145.58,10.81417552]
[1750861662719,45.93417552,145.62,145.58,10.81417552]
[1750861662720,35.12,145.62,145.58,10.81417552]
[1750861662929,52.80136623,145.62,145.58,10.81417552]
[1750861663234,45.93417552,145.62,145.58,10.81417552]
[1750861663811,52.80143724,145.62,145.58,10.81417552]
[1750861664012,41.98726172,145.62,145.57,10.81417552]
[1750861664312,45.93417552,145.62,145.57,6.86951791]
[1750861664516,10.81417552,145.58,145.56,1.5081]
[1750861664907,10.81417552,145.59,145.56,1.5081]
[1750861665112,10.81417552,145.58,145.56,1.5081]
[1750861665538,10.81417552,145.59,145.56,1.5081]
[1750861665913,10.81417552,145.58,145.56,1.5081]
[1750861666313,36.81417552,145.6,145.56,19.19210597]
[1750861666543,26.0,145.6,145.57,10.81417552]
[1750861667122,26.0,145.6,145.56,19.19210597]
[1750861667453,26.0,145.6,145.57,10.81417552]
[1750861667625,43.6824305,145.6,145.56,12.32227552]
[1750861667814,43.6824305,145.6,145.56,1.5081]
[1750861668015,10.81417552,145.59,145.56,1.5081]
[1750861669176,43.6824305,145.6,145.56,1.5081]
[1750861670260,6.48332458,145.59,145.56,1.5081]
[1750861670669,6.48332458,145.57,145.52,7.8318]
[1750861670974,35.02,145.58,145.53,6.48332458]
[1750861671286,41.50332458,145.58,145.53,6.48332458]
[1750861671776,41.50332458,145.58,145.52,14.70363412]
[1750861671951,6.48332458,145.56,145.52,21.1869587]
[1750861672152,6.48332458,145.56,145.52,14.70363412]
[1750861672358,6.48332458,145.57,145.53,6.48332458]
[1750861672780,41.50332458,145.58,145.53,6.48332458]
[1750861673366,6.48332458,145.57,145.52,14.31512458]
[1750861673567,6.48332458,145.56,145.52,14.31512458]
[1750861673976,6.48332458,145.56,145.52,7.8318]
[1750861674361,6.48332458,145.56,145.52,21.187017]
[1750861674760,6.48332458,145.56,145.52,14.70369242]
[1750861675076,13.35287187,145.57,145.52,21.1869433]
[1750861675378,6.48332458,145.56,145.52,21.1869433]
[1750861675562,6.48332458,145.56,145.52,14.70361872]
[1750861675757,6.48332458,145.55,145.52,1.5987]
[1750861676479,13.35390842,145.55,145.52,1.5987]
[1750861676647,6.48332458,145.55,145.52,1.5987]
[1750861676850,32.48332458,145.57,145.52,1.5987]
[1750861677151,6.48332458,145.55,145.52,1.5987]
[1750861677350,6.48332458,145.56,145.52,14.95378808]
[1750861677856,6.48332458,145.55,145.52,1.5987]
[1750861678059,6.48332458,145.55,145.51,6.87216948]
[1750861678060,6.48332458,145.54,145.5,13.3560115]
[1750861678570,26.0,145.55,145.5,13.3560115]
[1750861678771,32.48332458,145.55,145.5,13.3560115]
[1750861679984,39.35387741,145.55,145.5,13.3560115]
[1750861680190,39.35387741,145.55,145.49,1.5748]
[1750861680191,6.48332458,145.53,145.49,14.93132758]
[1750861680374,6.48332458,145.52,145.49,8.44803986]
[1750861680562,6.48332458,145.53,145.49,8.44803986]
[1750861680756,6.48332458,145.53,145.49,14.93136444]
[1750861680957,53.50964886,145.54,145.49,1.5748]
[1750861681156,6.48332458,145.5,145.46,6.48332458]
[1750861681472,6.48332458,145.5,145.45,1.5469]
[1750861681473,6.48332458,145.5,145.45,8.03022458]
[1750861681675,53.50964886,145.54,145.45,8.03022458]
[1750861681676,53.50964886,145.54,145.47,6.48332458]
[1750861681871,67.34332458,145.54,145.5,6.48332458]
[1750861682182,17.1734654,145.58,145.53,6.48332458]
[1750861682183,6.48332458,145.58,145.53,6.48332458]
[1750861682487,26.0,145.56,145.54,6.48332458]
[1750861682664,26.0,145.56,145.53,8.05462458]
[1750861682863,26.0,145.56,145.53,1.5713]
[1750861683171,26.0,145.56,145.53,8.44249988]
[1750861683891,26.0,145.56,145.53,14.92582446]
[1750861684492,6.48332458,145.55,145.52,6.87153351]
[1750861685006,6.48332458,145.55,145.49,8.12572458]
[1750861685007,6.48332458,145.53,145.49,8.12572458]
[1750861685991,26.0,145.55,145.5,13.3560436]
[1750861686306,32.48332458,145.55,145.51,6.48332458]
[1750861686516,6.48332458,145.53,145.5,6.87271902]
[1750861687384,6.48332458,145.52,145.49,1.6424]
[1750861687598,6.48332458,145.52,145.48,6.2672]
[1750861687599,6.48332458,145.51,145.48,6.87371899]
[1750861688010,18.64964886,145.54,145.49,6.48332458]
[1750861688011,26.0,145.52,145.49,6.48332458]
[1750861688182,6.48332458,145.54,145.5,6.48332458]
[1750861688710,6.48332458,145.53,145.48,13.35704357]
[1750861688894,6.48332458,145.5,145.46,6.87474219]
[1750861689098,6.48332458,145.5,145.46,13.35806677]
[1750861689425,26.0,145.51,145.46,13.35806677]
[1750861689726,6.48332458,145.5,145.46,13.35806677]
[1750861689890,6.48332458,145.49,145.46,6.87474219]
[1750861690289,32.8728226,145.51,145.46,6.87474219]
[1750861690505,6.48332458,145.49,145.45,28.40906401]
[1750861690817,6.48332458,145.48,145.45,21.80876401]
[1750861691115,41.5928226,145.51,145.45,21.80876401]
[1750861691116,6.48332458,145.49,145.45,21.80876401]
[1750861691426,6.48332458,145.49,145.45,28.29208859]
[1750861691597,6.48332458,145.49,145.45,21.80876401]
[1750861691806,6.48332458,145.48,145.45,21.80876401]
[1750861692011,6.48332458,145.48,145.45,14.93374941]
[1750861692385,6.48332458,145.48,145.45,21.80893163]
[1750861692586,6.48332458,145.48,145.45,13.42064941]
[1750861692816,6.48332458,145.48,145.45,20.29569534]
[1750861693115,6.48332458,145.46,145.43,6.87616035]
[1750861693325,6.48332458,145.47,145.43,6.87616035]
[1750861694001,6.48332458,145.47,145.43,13.35948493]
[1750861694203,6.48332458,145.48,145.43,13.35948493]
[1750861695120,6.48332458,145.47,145.43,13.35948493]
[1750861695822,26.0,145.48,145.44,6.48332458]
[1750861696003,32.48332458,145.48,145.43,13.35948493]
[1750861696616,41.20332458,145.51,145.47,6.48332458]
[1750861696820,41.20332458,145.51,145.46,6.48332458]
[1750861697320,41.20332458,145.51,145.47,6.8742696]
[1750861697621,41.20332458,145.51,145.47,13.35759418]
[1750861697807,6.48332458,145.51,145.47,13.35759418]
[1750861698311,32.48332458,145.52,145.48,6.48332458]
[1750861698522,26.0,145.52,145.48,6.48332458]
[1750861698822,23.99384046,145.55,145.5,6.48332458]
[1750861699235,26.0,145.54,145.49,1.6135]
[1750861699548,32.48332458,145.54,145.5,6.87285223]
[1750861700047,6.48332458,145.53,145.49,14.96993682]
[1750861701138,32.48332458,145.54,145.49,14.96993682]
[1750861701826,6.48332458,145.52,145.49,1.6135]
[1750861702029,6.48332458,145.52,145.49,8.4868242]
[1750861702231,6.48332458,145.52,145.49,1.6135]
[1750861702551,6.48332458,145.5,145.46,13.35806677]
[1750861702880,6.48332458,145.51,145.46,13.35806677]
[1750861703050,18.64964886,145.53,145.47,6.48332458]
[1750861703352,25.13297344,145.51,145.47,6.48332458]
[1750861703641,32.00540567,145.51,145.47,6.48332458]
[1750861704218,32.00540567,145.51,145.45,8.04312458]
[1750861704219,6.48332458,145.49,145.45,8.04312458]
[1750861704745,6.48332458,145.48,145.45,1.5598]
[1750861704935,6.48332458,145.48,145.41,43.19274797]
[1750861704936,6.48332458,145.47,145.41,7.6383]
[1750861705139,6.48332458,145.46,145.42,6.48332458]
[1750861705324,6.48332458,145.47,145.42,6.48332458]
[1750861705524,26.0,145.48,145.42,13.35973641]
[1750861705726,26.0,145.48,145.42,6.87641183]
[1750861705928,6.48332458,145.47,145.43,6.48332458]
[1750861706239,6.48332458,145.47,145.42,13.35973641]
[1750861706452,6.48332458,145.46,145.42,13.35973641]
[1750861706662,6.48332458,145.47,145.42,13.35973641]
[1750861707459,26.0,145.48,145.43,6.48332458]
[1750861707672,6.48332458,145.47,145.43,6.48332458]
[1750861708866,32.48332458,145.48,145.44,13.35901214]
[1750861709448,32.48332458,145.49,145.45,6.48332458]
[1750861709649,6.48332458,145.48,145.44,6.87568756]
[1750861709857,6.48332458,145.46,145.42,6.8766332]
[1750861710179,6.48332458,145.45,145.41,20.99853135]
[1750861710765,6.48332458,145.44,145.41,8.40450677]
[1750861711153,6.48332458,145.43,145.41,1.5276]
[1750861711355,32.87526681,145.45,145.41,8.40464972]
[1750861711356,6.48332458,145.44,145.41,8.40464972]
[1750861711851,32.48332458,145.45,145.41,8.40464972]
[1750861712183,6.48332458,145.43,145.41,1.5276]
[1750861712351,6.48332458,145.43,145.39,13.48087305]
[1750861712548,6.48332458,145.43,145.39,19.96419763]
[1750861712880,6.48332458,145.43,145.39,20.35871491]
[1750861713177,6.87576937,145.44,145.37,8.0481]
[1750861713178,6.48332458,145.4,145.37,8.0481]
[1750861713385,6.48332458,145.4,145.37,8.45188336]
[1750861713555,26.0,145.41,145.37,14.93520794]
[1750861713556,32.48332458,145.41,145.37,14.93520794]
[1750861713757,32.48332458,145.41,145.37,8.45188336]
[1750861714311,26.0,145.41,145.37,8.45188336]
[1750861714627,26.0,145.41,145.38,6.48332458]
[1750861714793,26.0,145.41,145.37,14.93520794]
[1750861715116,32.48332458,145.41,145.37,14.93520794]
[1750861716414,6.48332458,145.4,145.37,8.45188336]
[1750861716714,32.48332458,145.41,145.37,8.45188336]
[1750861716909,6.48332458,145.4,145.37,8.45188336]
[1750861717117,32.87717032,145.41,145.33,8.2913]
[1750861717294,32.87717032,145.41,145.3,18.64964886]
[1750861717295,32.87717032,145.41,145.3,1.638]
[1750861717296,6.48332458,145.34,145.3,1.638]
[1750861717494,6.48332458,145.32,145.3,1.638]
[1750861717798,6.48332458,145.32,145.26,17.20946863]
[1750861717799,32.48332458,145.31,145.26,1.5101]
[1750861718008,6.48332458,145.29,145.26,1.5101]
[1750861718209,26.0,145.31,145.24,6.8851556]
[1750861718210,6.48332458,145.27,145.24,6.8851556]
[1750861718404,6.48332458,145.27,145.23,6.88556423]
[1750861718405,26.0,145.27,145.23,6.88556423]
[1750861718715,6.48332458,145.25,145.22,8.39617418]
[1750861719094,26.0,145.27,145.22,8.39617418]
[1750861719095,6.48332458,145.24,145.22,1.5101]
[1750861719497,6.48332458,145.23,145.18,13.37132568]
[1750861719708,18.64964886,145.25,145.2,6.48332458]
[1750861719892,25.74779359,145.3,145.24,6.48332458]
[1750861719893,6.48332458,145.3,145.24,6.48332458]
[1750861720212,6.48332458,145.31,145.23,1.6329]
[1750861720418,10.84758651,145.32,145.28,10.84758651]
[1750861720595,10.84758651,145.32,145.24,24.09804461]
[1750861720789,36.84758651,145.31,145.27,10.84758651]
[1750861720984,36.84758651,145.31,145.24,24.09804461]
[1750861720985,26.0,145.31,145.24,24.09804461]
[1750861721188,26.0,145.31,145.27,10.84758651]
[1750861721418,36.84758651,145.31,145.27,10.84758651]
[1750861721613,36.84758651,145.31,145.24,24.09804461]
[1750861721834,36.84758651,145.31,145.27,10.84758651]
[1750861722046,36.84758651,145.31,145.28,6.88325991]
[1750861722250,18.64964886,145.34,145.28,17.73084642]
[1750861722417,10.84758651,145.33,145.29,10.84758651]
[1750861722617,10.84758651,145.33,145.28,6.88325991]
[1750861722618,17.11798651,145.36,145.28,24.09140968]
[1750861722839,10.84758651,145.34,145.3,10.84758651]
[1750861723338,10.84758651,145.34,145.28,6.88325991]
[1750861723538,10.84758651,145.32,145.28,6.88325991]
[1750861724216,10.84758651,145.32,145.28,17.73084642]
[1750861724558,10.84758651,145.29,145.24,10.84758651]
[1750861724731,10.84758651,145.26,145.23,1.6329]
[1750861724920,10.84758651,145.26,145.23,8.51836175]
[1750861725120,10.84758651,145.27,145.23,19.36594826]
[1750861725320,10.84758651,145.27,145.23,8.51836175]
[1750861725620,10.84758651,145.28,145.24,10.84758651]
[1750861725828,34.32,145.33,145.23,8.51836175]
[1750861725829,36.84758651,145.3,145.26,10.84758651]
[1750861726029,26.0,145.3,145.27,10.84758651]
[1750861726220,36.84758651,145.32,145.28,6.88325991]
[1750861726423,26.0,145.32,145.29,10.84758651]
[1750861726621,26.0,145.32,145.28,6.88325991]
[1750861726821,26.0,145.32,145.28,17.73084642]
[1750861727043,26.0,145.32,145.29,10.84758651]
[1750861727346,34.32,145.33,145.3,10.84758651]
[1750861727535,10.84758651,145.35,145.3,10.84758651]
[1750861728249,10.84758651,145.35,145.31,6.88183882]
[1750861728454,10.84758651,145.35,145.3,17.72974489]
[1750861729261,10.84758651,145.35,145.31,10.84758651]
[1750861729442,10.84758651,145.35,145.3,17.72974489]
[1750861729965,10.84758651,145.34,145.3,17.72974489]
[1750861730757,10.84758651,145.35,145.31,10.84758651]
[1750861730954,10.84758651,145.35,145.3,17.72974489]
[1750861731460,10.84758651,145.35,145.3,6.88215838]
[1750861731635,10.84758651,145.35,145.3,17.72974489]
[1750861732977,13.46191994,145.46,145.32,10.84758651]
[1750861733129,10.84758651,145.4,145.31,15.04213111]
[1750861733334,10.84758651,145.38,145.31,15.04213111]
[1750861733659,18.64964886,145.39,145.34,10.84758651]
[1750861733840,26.0,145.37,145.31,8.1604]
[1750861734046,10.84758651,145.34,145.31,1.5327]
[1750861734244,10.84758651,145.34,145.31,8.41453237]
[1750861734653,10.84758651,145.34,145.29,10.84758651]
[1750861735245,10.84758651,145.33,145.29,17.73027767]
[1750861735763,25.52912051,145.36,145.29,17.73027767]
[1750861735955,25.52912051,145.36,145.3,10.84758651]
[1750861735956,10.84758651,145.34,145.3,10.84758651]
[1750861736672,26.0,145.37,145.33,10.84758651]
[1750861736874,26.0,145.37,145.35,10.84758651]
[1750861737182,36.37496802,145.4,145.35,10.84758651]
[1750861737481,26.0,145.39,145.35,10.84758651]
[1750861737649,26.0,145.39,145.37,10.84758651]
[1750861737855,26.0,145.38,145.37,10.84758651]
[1750861738053,26.0,145.38,145.36,10.84758651]
[1750861738969,26.0,145.38,145.35,10.84758651]
[1750861739547,26.0,145.38,145.34,6.88024919]
[1750861739767,26.0,145.38,145.35,10.84758651]
[1750861739971,26.0,145.38,145.36,10.84758651]
[1750861740372,26.0,145.38,145.36,6.50049419]
[1750861741068,26.0,145.38,145.35,6.87982085]
[1750861741972,26.68075598,145.38,145.35,6.87982085]
[1750861742479,0.68075598,145.4,145.37,6.50049419]
[1750861742778,0.68075598,145.4,145.38,6.50049419]
[1750861743453,0.68075598,145.4,145.37,6.50049419]
[1750861743647,0.68075598,145.4,145.38,6.50049419]
[1750861744047,0.68075598,145.41,145.39,6.50049419]
[1750861744275,6.50049419,145.45,145.4,6.50049419]
[1750861744579,6.50049419,145.43,145.38,6.50049419]
[1750861744779,0.68075598,145.42,145.38,6.50049419]
[1750861744988,0.68075598,145.42,145.38,13.37896456]
[1750861745286,0.68075598,145.44,145.4,6.50049419]
[1750861745587,26.68075598,145.44,145.4,6.50049419]
[1750861745786,26.68075598,145.44,145.33,0.68808917]
[1750861745787,26.0,145.36,145.3,6.50049419]
[1750861745986,26.0,145.36,145.28,6.50049419]
[1750861745987,6.50049419,145.32,145.28,6.50049419]
[1750861746304,6.50049419,145.32,145.29,30.0]
[1750861746586,6.50049419,145.33,145.29,36.50049419]
[1750861746755,6.50049419,145.33,145.29,6.50049419]
[1750861747159,7.18125017,145.33,145.28,13.38356331]
[1750861747373,6.50049419,145.32,145.28,6.88306912]
[1750861748188,6.50049419,145.32,145.28,13.38356331]
[1750861748354,10.84568292,145.32,145.28,17.72875204]
[1750861748872,10.84568292,145.32,145.28,6.88306912]
[1750861749255,10.84568292,145.31,145.27,17.72927622]
[1750861749462,10.84568292,145.3,145.27,6.8835933]
[1750861749967,10.84568292,145.29,145.26,6.884063]
[1750861750563,33.56182205,145.33,145.24,17.21280139]
[1750861750564,10.84568292,145.27,145.24,6.8848604]
[1750861751065,10.84568292,145.27,145.23,6.88562969]
[1750861751376,0.68075598,145.29,145.23,17.73131261]
[1750861751377,10.84568292,145.28,145.23,17.73131261]
[1750861751597,10.84568292,145.27,145.23,6.88562969]
[1750861751791,10.84568292,145.27,145.23,10.84568292]
[1750861751994,10.84568292,145.25,145.21,7.7]
[1750861752182,24.08988834,145.29,145.21,7.7]
[1750861752183,10.84568292,145.24,145.21,7.7]
[1750861752497,0.68075598,145.28,145.21,18.54568292]
[1750861752698,10.84568292,145.26,145.21,7.7]
[1750861752900,11.5264389,145.25,145.21,7.7]
[1750861753206,10.84568292,145.25,145.21,25.43214165]
[1750861753374,10.84568292,145.25,145.21,14.58645873]
[1750861753776,10.84568292,145.24,145.21,7.7]
[1750861754087,7.56503901,145.26,145.21,1.5442]
[1750861754292,10.84568292,145.24,145.21,1.5442]
[1750861755892,10.84568292,145.25,145.21,8.4307247]
[1750861756073,11.5264389,145.28,145.23,10.84568292]
[1750861756498,0.68075598,145.28,145.24,10.84568292]
[1750861756704,11.5264389,145.28,145.24,10.84568292]
[1750861756897,0.68075598,145.28,145.24,10.84568292]
[1750861757101,11.5264389,145.28,145.21,18.76064514]
[1750861757289,11.5264389,145.28,145.24,10.84568292]
[1750861757811,11.5264389,145.28,145.22,6.88610384]
[1750861757812,0.68075598,145.28,145.25,10.84568292]
[1750861757985,26.0,145.29,145.26,10.84568292]
[1750861758503,11.5264389,145.31,145.26,10.84568292]
[1750861758504,0.68075598,145.31,145.26,10.84568292]
[1750861758716,0.68075598,145.34,145.3,10.84568292]
[1750861759234,8.0655,145.4,145.28,1.5612]
[1750861759235,10.84568292,145.38,145.33,10.84568292]
[1750861759399,10.84568292,145.38,145.34,10.84568292]
[1750861760319,11.5264389,145.39,145.35,10.84568292]
[1750861760506,11.5264389,145.39,145.31,6.5927]
[1750861760507,0.68075598,145.39,145.31,6.5927]
[1750861760707,10.84568292,145.38,145.33,10.84568292]
[1750861760890,10.84568292,145.38,145.34,10.84568292]
[1750861761095,10.84568292,145.38,145.35,6.87994496]
[1750861761717,10.84568292,145.38,145.33,10.84568292]
[1750861761940,10.84568292,145.36,145.32,6.88136526]
[1750861762295,11.5264389,145.37,145.32,17.72704818]
[1750861762526,11.5264389,145.37,145.33,10.84568292]
[1750861763242,11.5264389,145.37,145.33,17.72652945]
[1750861764128,11.5264389,145.38,145.34,10.84568292]
[1750861764327,0.68075598,145.38,145.35,10.84568292]
[1750861764936,26.0,145.4,145.37,10.84568292]
[1750861765139,11.5264389,145.41,145.37,10.84568292]
[1750861765323,11.5264389,145.41,145.38,6.87852524]
[1750861765518,11.5264389,145.41,145.38,17.72420816]
[1750861765519,0.68075598,145.41,145.38,17.72420816]
[1750861765720,11.5264389,145.43,145.39,10.84568292]
[1750861765923,0.68075598,145.43,145.39,10.84568292]
[1750861766126,26.68075598,145.43,145.39,10.84568292]
[1750861766323,26.68075598,145.43,145.38,6.87852524]
[1750861766538,0.68075598,145.43,145.39,10.84568292]
[1750861766931,47.3464389,145.44,145.39,10.84568292]
[1750861767626,47.3464389,145.44,145.39,17.72367924]
[1750861767828,10.84568292,145.43,145.39,10.84568292]
[1750861768031,10.84568292,145.43,145.38,10.84568292]
[1750861768236,0.68075598,145.42,145.38,10.84568292]
[1750861768621,0.68075598,145.42,145.39,10.84568292]
[1750861768822,0.68075598,145.42,145.38,10.84568292]
[1750861769039,11.5264389,145.42,145.38,10.84568292]
[1750861769745,18.40307357,145.42,145.37,6.87866081]
[1750861769957,18.40307357,145.42,145.38,10.84568292]
[1750861770122,11.5264389,145.42,145.38,10.84568292]
[1750861771251,10.84568292,145.41,145.37,6.87866081]
[1750861771440,10.84568292,145.41,145.37,17.72434373]
[1750861771841,10.84568292,145.41,145.36,1.5246]
[1750861771842,6.87725254,145.41,145.36,19.24972193]
[1750861772041,17.72293546,145.41,145.36,19.24972193]
[1750861772250,17.72293546,145.41,145.31,51.93053274]
[1750861772251,10.84568292,145.38,145.32,1.5789]
[1750861772459,10.84568292,145.35,145.32,1.5789]
[1750861772840,10.84568292,145.35,145.32,8.46013739]
[1750861773958,0.68075598,145.37,145.32,8.46013739]
[1750861773959,10.84568292,145.36,145.32,8.46013739]
[1750861775061,10.84568292,145.35,145.32,8.46013739]
[1750861775249,0.68075598,145.37,145.32,19.30582031]
[1750861775558,10.84568292,145.35,145.32,8.46013739]
[1750861775755,7.55982757,145.37,145.32,1.5789]
[1750861775964,10.84568292,145.35,145.32,8.46019813]
[1750861776330,10.84568292,145.35,145.32,1.5789]
[1750861776537,10.84568292,145.34,145.3,6.88213215]
[1750861776739,10.84568292,145.34,145.3,17.72781507]
[1750861776946,10.84568292,145.34,145.3,6.88213215]
[1750861777437,11.5264389,145.34,145.3,6.88213215]
[1750861777659,10.84568292,145.34,145.3,6.88213215]
[1750861777863,10.84568292,145.34,145.3,17.72781507]
[1750861778360,0.68075598,145.35,145.31,10.84568292]
[1750861778561,11.5264389,145.35,145.31,10.84568292]
[1750861778943,11.5264389,145.35,145.3,6.88213215]
[1750861779149,10.84568292,145.34,145.3,17.72781507]
[1750861779559,10.84568292,145.33,145.29,31.32072141]
[1750861780263,7.56128018,145.34,145.29,20.47503849]
[1750861780264,11.5264389,145.34,145.29,20.47503849]
[1750861780450,0.68075598,145.34,145.31,10.84568292]
[1750861780655,10.84568292,145.35,145.31,10.84568292]
[1750861780970,10.84568292,145.33,145.29,31.32072141]
[1750861781973,7.56072985,145.35,145.29,31.32072141]
[1750861782158,10.84568292,145.34,145.29,31.32072141]
[1750861782667,10.84568292,145.34,145.3,10.84568292]
[1750861782875,0.68075598,145.36,145.31,10.84568292]
[1750861783071,11.5264389,145.36,145.31,10.84568292]
[1750861783868,10.84568292,145.35,145.29,37.68200386]
[1750861784166,10.84568292,145.34,145.3,10.84568292]
[1750861784866,10.84568292,145.35,145.31,10.84568292]
[1750861785573,7.56026839,145.36,145.31,10.84568292]
[1750861785783,10.84568292,145.35,145.3,17.72799537]
[1750861785962,10.84568292,145.34,145.3,17.72799537]
[1750861786366,11.5264389,145.34,145.3,6.88231245]
[1750861786577,10.84568292,145.33,145.29,10.84568292]
[1750861786779,10.84568292,145.33,145.29,17.72841159]
[1750861787078,24.37150758,145.4,145.32,10.84568292]
[1750861787260,10.84568292,145.37,145.32,10.84568292]
[1750861787456,26.0,145.36,145.32,10.84568292]
[1750861787864,36.84568292,145.36,145.32,10.84568292]
[1750861788085,36.84568292,145.36,145.33,6.88089176]
[1750861792266,6.5039658,145.36,145.33,6.88089176]
[1750861794054,0.68075598,145.37,145.33,13.38485756]
[1750861794251,7.18472178,145.37,145.33,13.38485756]
[1750861794485,7.18472178,145.37,145.33,6.88089176]
[1750861794668,7.18472178,145.37,145.33,13.38485756]
[1750861798063,0.68075598,145.37,145.33,13.38485756]
[1750861798268,32.5039658,145.38,145.33,6.88089176]
[1750861798473,32.5039658,145.38,145.34,6.5039658]
[1750861798784,7.18472178,145.37,145.33,13.38485756]
[1750861799680,5.91431345,145.37,145.33,13.38485756]
[1750861799976,6.5039658,145.36,145.31,6.5039658]
[1750861800365,32.5039658,145.38,145.34,6.5039658]
[1750861800564,157.38,145.41,145.37,6.5039658]
[1750861800769,188.61355747,145.41,145.35,1.5308]
[1750861800966,6.5039658,145.39,145.35,1.5308]
[1750861801169,6.5039658,145.38,145.35,1.5308]
[1750861801579,26.0,145.38,145.33,6.5039658]
[1750861801761,26.0,145.38,145.34,6.5039658]
[1750861801956,162.98677887,145.41,145.36,6.87947165]
[1750861802256,156.10959167,145.41,145.37,6.5039658]
[1750861802571,9.58,145.41,145.38,6.5039658]
[1750861802876,9.58,145.41,145.36,6.87947165]
[1750861802877,146.52959167,145.44,145.4,6.5039658]
[1750861803070,146.52959167,145.44,145.39,7.5958]
[1750861803071,17.205509,145.47,145.43,6.5039658]
[1750861803279,17.205509,145.47,145.44,6.5039658]